[Event "FIDE World Cup O12-B 2024"]
[Site "Batumi"]
[Date "2024.06.26"]
[Round "4.8"]
[White "Amangeldy, Ramazan"]
[Black "Martinez Flores, Matias"]
[Result "0-1"]
[ECO "D02"]
[WhiteElo "1740"]
[BlackElo "2080"]
[Annotator "RC"]
[PlyCount "66"]
[EventDate "2024.06.23"]
[EventType "swiss"]
[EventCountry "GEO"]
[SourceTitle "playchess.com"]
[Source "ChessBase"]
[SourceQuality "1"]
[TimeControl "5400+30"]

1. d4 {[%emt 0:00:02]} d5 {[%emt 0:00:20]} 2. Nf3 {[%emt 0:00:05]} Nf6 {[%emt 0:00:05]} 3. Bf4 {[%emt 0:00:05]} e6 {[%emt 0:00:05]} 4. e3 {[%emt 0:00:04]} c5 {[%emt 0:00:10]} 5. Nbd2 {[%emt 0:00:04]} Nc6 {[%emt 0:00:05]} 6. c3 {[%emt 0:00:05]} cxd4 {[%emt 0:00:07]} 7. exd4 {[%emt 0:00:04]} Nh5 {[%emt 0:00:07]} 8. Bg5 {[%emt 0:00:08]} f6 {[%emt 0:00:15]} 9. Be3 {[%emt 0:06:04]} Bd6 {[%emt 0:00:08]} 10. Ne5 {[%emt 0:05:11]} fxe5 {[%emt 0:04:25]} 11. Qxh5+ {[%emt 0:00:46]} g6 {[%emt 0:00:06]} 12. Qh6 {[%emt 0:00:20]} Bf8 {[%emt 0:00:56]} 13. Qg5 {[%emt 0:01:41]} Be7 {[%emt 0:06:13]} 14. Qg3 {[%emt 0:07:00]} exd4 {[%emt 1:24:28]} 15. cxd4 {[%emt 0:01:02]} O-O {[%emt 0:00:00]} 16. Bb5 {[%emt 0:01:10]} Bh4 {[%emt 0:00:00]} 17. Qh3 {[%emt 0:05:50]} e5 {[%emt 0:00:00]} 18. g4 {[%emt 0:00:07]} exd4 {[%emt 0:00:00]} 19. Bh6 {[%emt 0:00:10]} Rxf2 {[%emt 0:00:00]} 20. O-O-O {[%emt 0:00:45]} Ne5 {[%emt 0:00:00]} 21. Qb3 {[%emt 0:01:47]} Bxg4 {[%emt 0:00:00]} 22. Rde1 {[%emt 0:03:23]} Rf5 {[%emt 0:00:00]} 23. Re4 {[%emt 0:01:28]} Bf3 {[%emt 0:00:00]} 24. Rxe5 {[%emt 0:04:08]} Qc7+ {[%emt 0:00:00]} 25. Kb1 {[%emt 0:00:53]} Bxh1 {[%emt 0:00:00]} 26. Rxf5 {[%emt 0:01:42]} gxf5 {[%emt 0:00:00]} 27. Nf3 {[%emt 0:00:53]} Bxf3 {[%emt 0:06:30]} 28. Qxf3 {[%emt 0:00:20]} Qe5 {[%emt 0:00:00]} 29. Bf4 {[%emt 0:01:46]} Qe4+ {[%emt 0:01:00]} 30. Qd3 {[%emt 0:02:28]} Qxf4 {[%emt 0:00:00]} 31. a4 {[%emt 0:00:18]} Qe4 {[%emt 0:00:00]} 32. Ka2 {[%emt 0:00:18]} Qxd3 {[%emt 0:00:00]} 33. Bxd3 {[%emt 0:00:12]} f4 {[%emt 0:00:00]} 0-1

[Event "FIDE World Cup O12-B 2024"]
[Site "Batumi"]
[Date "2024.06.26"]
[Round "4.9"]
[White "Suleymanov, Askhab"]
[Black "Minkhajdarov, Ruslan"]
[Result "0-1"]
[ECO "B53"]
[WhiteElo "1630"]
[BlackElo "1921"]
[Annotator "NA RC"]
[PlyCount "106"]
[EventDate "2024.06.23"]
[EventType "swiss"]
[EventCountry "GEO"]
[SourceTitle "playchess.com"]
[Source "ChessBase"]
[SourceQuality "1"]
[TimeControl "5400+30"]

1. e4 {[%emt 0:00:01]} c5 {[%emt 0:00:31]} 2. Nf3 {[%emt 0:00:10]} d6 {[%emt 0:00:19]} 3. d4 {[%emt 0:00:17]} cxd4 {[%emt 0:00:04]} 4. Qxd4 {[%emt 0:00:11]} Nc6 {[%emt 0:00:06]} 5. Qe3 {[%emt 0:00:17]} Nf6 {[%emt 0:02:10]} 6. Be2 {[%emt 0:00:22]} e6 {[%emt 0:02:34]} 7. O-O {[%emt 0:00:57]} Be7 {[%emt 0:04:22]} 8. c4 {[%emt 0:00:40]} O-O {[%emt 0:09:13]} 9. Nc3 {[%emt 0:02:20]} a6 {[%emt 0:01:45]} 10. h3 {[%emt 0:02:02]} Qc7 {[%emt 0:00:34]} 11. b3 {[%emt 0:05:29]} Ne5 {[%emt 0:13:50]} 12. Rd1 {[%emt 0:08:31]} b6 {[%emt 0:01:30]} 13. Ba3 {[%emt 0:07:59]} Re8 {[%emt 0:19:32]} 14. Rac1 {[%emt 0:11:25]} Bb7 {[%emt 0:02:14]} 15. Nd4 $14 {[%emt 0:16:18]} (15. Nxe5 $16 dxe5 16. Bxe7 Rxe7 17. Na4 Bxe4 18. Nxb6) 15... Bf8 {[%emt 0:21:25]} 16. Bf3 {[%emt 0:17:47]} Rad8 {[%emt 0:03:33]} 17. Nde2 {[%emt 0:03:40]} h6 {[%emt 0:03:34]} 18. Ng3 {[%emt 0:03:29]} Nxf3+ {[%emt 0:05:21]} 19. Qxf3 {[%emt 0:00:36]} Rd7 {[%emt 0:02:59]} 20. Qe3 {[%emt 0:01:04]} Bc6 {[%emt 0:01:38]} 21. b4 {[%emt 0:05:12]} Ba8 {[%emt 0:01:41]} 22. Na4 {[%emt 0:02:00]} Rb8 {[%emt 0:00:46]} 23. c5 {[%emt 0:03:13]} bxc5 {[%emt 0:00:03]} 24. bxc5 {[%emt 0:00:16]} d5 {[%emt 0:00:04]} 25. Nb6 {[%emt 0:02:11]} Rdd8 {[%emt 0:00:14]} 26. e5 {[%emt 0:01:33]} Nd7 {[%emt 0:00:39]} 27. Nxd7 {[%emt 0:00:39]} Qxd7 {[%emt 0:00:07]} 28. Qd4 {[%emt 0:01:01]} Rdc8 {[%emt 0:00:08]} 29. Rd3 {[%emt 0:00:47]} Bc6 {[%emt 0:00:23]} 30. Nh5 {[%emt 0:01:02]} Kh8 {[%emt 0:01:26]} 31. Rg3 {[%emt 0:01:08]} Qe7 {[%emt 0:01:28]} 32. Nf6 {[%emt 0:01:06]} Rb5 {[%emt 0:01:25]} 33. Qf4 {[%emt 0:01:22]} g6 {[%emt 0:00:29]} 34. Ng4 {[%emt 0:00:39]} g5 {[%emt 0:00:15]} 35. Qe3 {[%emt 0:00:22]} Bg7 {[%emt 0:00:56]} 36. h4 {[%emt 0:00:37]} gxh4 {[%emt 0:00:19]} 37. Rh3 {[%emt 0:00:01]} Qg5 {[%emt 0:00:13]} 38. f4 {[%emt 0:00:26]} Qxg4 {[%emt 0:00:06]} 39. Qf2 {[%emt 0:00:14]} Rcb8 {[%emt 0:01:02]} 40. Rxh4 {[%emt 0:00:34]} Qf5 {[%emt 0:00:19]} 41. Rc3 {[%emt 0:00:29]} Rb1+ {[%emt 0:00:22]} 42. Kh2 {[%emt 0:00:11]} Kg8 {[%emt 0:00:34]} 43. Rg3 {[%emt 0:00:20]} Kf8 {[%emt 0:00:01]} 44. Qe2 {[%emt 0:00:31]} Ra1 {[%emt 0:00:44]} 45. Qxa6 {[%emt 0:01:39]} Qb1 {[%emt 0:00:13]} 46. Kh3 {[%emt 0:02:22]} Qb5 {[%emt 0:00:32]} 47. Qa7 {[%emt 0:00:00]} Rh1+ {[%emt 0:00:00]} 48. Kg4 {[%emt 0:00:00]} Qe2+ {[%emt 0:00:01]} 49. Rf3 {[%emt 0:00:00]} Qxg2+ {[%emt 0:00:05]} 50. Rg3 {[%emt 0:00:00]} Qe2+ {[%emt 0:00:04]} 51. Rf3 {[%emt 0:00:00]} Rg1+ {[%emt 0:00:01]} 52. Kh5 {[%emt 0:00:00]} Qxf3+ {[%emt 0:00:02]} 53. Rg4 {[%emt 0:00:00]} Rh1# {[%emt 0:05:04]} 0-1

[Event "FIDE World Cup O12-B 2024"]
[Site "Batumi"]
[Date "2024.06.26"]
[Round "4.10"]
[White "Yusupov, Rauf"]
[Black "Akhmet, Suleyman"]
[Result "1-0"]
[ECO "D04"]
[WhiteElo "1800"]
[BlackElo "1793"]
[Annotator "NA RC"]
[PlyCount "86"]
[EventDate "2024.06.23"]
[EventType "swiss"]
[EventCountry "GEO"]
[SourceTitle "playchess.com"]
[Source "ChessBase"]
[SourceQuality "1"]
[TimeControl "5400+30"]

1. d4 {[%emt 0:00:01]} Nf6 {[%emt 0:00:18]} 2. Nf3 {[%emt 0:00:18]} d5 {[%emt 0:01:03]} 3. e3 {[%emt 0:02:23]} c5 {[%emt 0:00:42]} 4. b3 {[%emt 0:00:09]} cxd4 {[%emt 0:00:28]} 5. exd4 {[%emt 0:00:04]} Nc6 {[%emt 0:00:17]} 6. Bb2 {[%emt 0:00:15]} Bf5 {[%emt 0:01:11]} 7. Bd3 {[%emt 0:00:32]} Bxd3 {[%emt 0:00:44]} 8. Qxd3 {[%emt 0:00:05]} e6 {[%emt 0:00:06]} 9. a3 {[%emt 0:00:34]} Bd6 {[%emt 0:03:07]} 10. Nbd2 {[%emt 0:00:34]} O-O {[%emt 0:00:16]} 11. O-O {[%emt 0:00:08]} Rc8 {[%emt 0:03:40]} 12. c4 {[%emt 0:02:12]} b6 {[%emt 0:15:34]} 13. Rac1 {[%emt 0:04:05]} Bf4 {[%emt 0:01:56]} 14. Rc2 {[%emt 0:06:50]} Qd7 {[%emt 0:04:37]} 15. g3 {[%emt 0:05:04]} dxc4 {[%emt 0:01:01]} 16. bxc4 {[%emt 0:04:49]} Bxd2 {[%emt 0:04:04]} 17. Rxd2 {[%emt 0:14:06]} Na5 {[%emt 0:02:16]} 18. Ne5 {[%emt 0:08:04]} Qa4 $15 {[%emt 0:00:52]} 19. Rc2 {[%emt 0:07:04]} Rfd8 {[%emt 0:03:59]} 20. Rcc1 {[%emt 0:05:51]} Qb3 {[%emt 0:06:51]} 21. Qe2 {[%emt 0:10:04]} Rc7 {[%emt 0:13:35]} 22. Rfd1 {[%emt 0:08:39]} Rdc8 {[%emt 0:01:16]} 23. Rd3 {[%emt 0:01:14]} Qa4 {[%emt 0:00:14]} 24. c5 {[%emt 0:07:15]} Nd5 {[%emt 0:03:05]} 25. Rf3 {[%emt 0:03:07]} Qe8 {[%emt 0:02:17]} 26. Rc2 {[%emt 0:08:10]} Nc6 {[%emt 0:06:23]} 27. Nc4 {[%emt 0:00:14]} Qf8 {[%emt 0:02:49]} 28. Nd6 {[%emt 0:00:23]} Rd8 {[%emt 0:00:08]} 29. Qe4 {[%emt 0:01:13]} Rcd7 {[%emt 0:09:11]} 30. a4 {[%emt 0:00:42]} Na5 {[%emt 0:04:12]} 31. Ba3 {[%emt 0:00:39]} Nf6 {[%emt 0:01:17]} 32. Qe3 {[%emt 0:01:42]} Nd5 {[%emt 0:06:41]} 33. Qd2 {[%emt 0:00:00]} Nc6 {[%emt 0:02:07]} 34. cxb6 {[%emt 0:00:00]} Ndb4 {[%emt 0:00:40]} 35. Bxb4 {[%emt 0:00:34]} Nxb4 {[%emt 0:00:11]} 36. Qxb4 {[%emt 0:00:05]} axb6 {[%emt 0:00:47]} 37. Qxb6 {[%emt 0:00:58]} Rxd6 {[%emt 0:00:10]} 38. Qb7 {[%emt 0:00:23]} Rb8 {[%emt 0:00:51]} 39. Qa7 {[%emt 0:00:22]} Ra8 {[%emt 0:00:15]} 40. Qb7 {[%emt 0:00:47]} Rda6 {[%emt 0:00:47]} 41. Rc7 {[%emt 0:00:41]} f6 {[%emt 0:00:29]} 42. Rfc3 {[%emt 0:00:29]} Rxa4 {[%emt 0:00:30]} 43. Rc8 {[%emt 0:00:07]} Qd8 {[%emt 0:01:03]} 1-0

[Event "FIDE World Cup O12-B 2024"]
[Site "Batumi"]
[Date "2024.06.26"]
[Round "4.11"]
[White "Khubuluri, Zaal"]
[Black "Amreyev, Azat"]
[Result "0-1"]
[ECO "C06"]
[WhiteElo "1501"]
[BlackElo "1704"]
[Annotator "NA RC"]
[PlyCount "88"]
[EventDate "2024.06.23"]
[EventType "swiss"]
[EventCountry "GEO"]
[SourceTitle "playchess.com"]
[Source "ChessBase"]
[SourceQuality "1"]
[TimeControl "5400+30"]

1. e4 {[%emt 0:00:03]} e6 {[%emt 0:00:29]} 2. d4 {[%emt 0:00:10]} d5 {[%emt 0:00:05]} 3. Nd2 {[%emt 0:00:09]} Nf6 {[%emt 0:00:12]} 4. e5 {[%emt 0:00:30]} Nfd7 {[%emt 0:00:09]} 5. Bd3 {[%emt 0:00:22]} c5 {[%emt 0:00:06]} 6. c3 {[%emt 0:00:12]} Nc6 {[%emt 0:00:05]} 7. Ne2 {[%emt 0:02:09]} cxd4 {[%emt 0:00:35]} 8. cxd4 {[%emt 0:00:14]} f6 {[%emt 0:00:11]} 9. exf6 {[%emt 0:04:45]} Nxf6 {[%emt 0:01:19]} 10. Nf3 {[%emt 0:01:59]} Bd6 {[%emt 0:01:13]} 11. O-O {[%emt 0:09:38]} Qc7 {[%emt 0:00:45]} 12. Bg5 {[%emt 0:01:02]} O-O {[%emt 0:00:55]} 13. Bh4 {[%emt 0:03:44]} Nh5 {[%emt 0:00:43]} 14. Qc2 {[%emt 0:05:01]} h6 {[%emt 0:00:14]} 15. Bh7+ {[%emt 0:00:16]} Kh8 {[%emt 0:00:09]} 16. Bg6 {[%emt 0:00:27]} Rxf3 {[%emt 0:00:15]} 17. gxf3 {[%emt 0:00:16]} Bxh2+ {[%emt 0:00:07]} 18. Kg2 {[%emt 0:00:37]} Nf4+ {[%emt 0:00:19]} 19. Nxf4 {[%emt 0:00:10]} Qxf4 {[%emt 0:00:11]} 20. Bg3 {[%emt 0:00:13]} Bxg3 {[%emt 0:00:11]} 21. fxg3 {[%emt 0:00:11]} Qf6 {[%emt 0:00:30]} 22. Rac1 {[%emt 0:14:23]} Bd7 {[%emt 0:03:40]} 23. Rfd1 {[%emt 0:18:16]} Nxd4 {[%emt 0:01:44]} 24. Qf2 {[%emt 0:06:07]} Nxf3 {[%emt 0:01:59]} 25. Qxf3 {[%emt 0:01:56]} Qxg6 {[%emt 0:00:24]} 26. Qd3 {[%emt 0:01:39]} Qxd3 {[%emt 0:00:27]} 27. Rxd3 {[%emt 0:00:06]} Bc6 {[%emt 0:00:21]} 28. Kf2 {[%emt 0:01:09]} Rf8+ {[%emt 0:00:06]} 29. Rf3 {[%emt 0:00:24]} Re8 {[%emt 0:00:35]} 30. Re1 {[%emt 0:04:20]} d4 {[%emt 0:01:13]} 31. Rd3 {[%emt 0:01:49]} e5 {[%emt 0:00:07]} 32. b3 {[%emt 0:01:19]} Kg8 {[%emt 0:00:24]} 33. a4 {[%emt 0:01:21]} Kf7 {[%emt 0:00:16]} 34. Kg1 {[%emt 0:01:22]} Kf6 {[%emt 0:00:18]} 35. Rd2 {[%emt 0:04:46]} Rd8 {[%emt 0:00:18]} 36. Rf2+ {[%emt 0:01:50]} Ke6 {[%emt 0:00:08]} 37. Rd2 {[%emt 0:00:55]} e4 {[%emt 0:00:06]} 38. Rde2 {[%emt 0:01:53]} Ke5 {[%emt 0:00:23]} 39. Rd2 {[%emt 0:01:51]} d3 {[%emt 0:00:21]} 40. Red1 {[%emt 0:01:25]} Kd4 {[%emt 0:00:20]} 41. Rc1 {[%emt 0:03:46]} Bd5 {[%emt 0:00:59]} 42. Kf1 {[%emt 0:04:43]} e3 {[%emt 0:00:07]} 43. Rh2 {[%emt 0:00:27]} d2 {[%emt 0:00:20]} 44. Rd1 {[%emt 0:00:45]} Kd3 {[%emt 0:00:14]} 0-1

[Event "FIDE World Cup O12-B 2024"]
[Site "Batumi"]
[Date "2024.06.26"]
[Round "4.12"]
[White "Cronje, Johannes Christiaan"]
[Black "Atar, Semih Akif"]
[Result "0-1"]
[ECO "D37"]
[WhiteElo "1504"]
[BlackElo "1660"]
[Annotator "NA RC"]
[PlyCount "170"]
[EventDate "2024.06.23"]
[EventType "swiss"]
[EventCountry "GEO"]
[SourceTitle "playchess.com"]
[Source "ChessBase"]
[SourceQuality "1"]
[TimeControl "5400+30"]

1. c4 {[%emt 0:00:02]} e6 {[%emt 0:00:08]} 2. Nc3 {[%emt 0:00:19]} d5 {[%emt 0:00:06]} 3. e3 {[%emt 0:00:09]} Nf6 {[%emt 0:00:22]} 4. Nf3 {[%emt 0:00:10]} Be7 {[%emt 0:01:04]} 5. Be2 {[%emt 0:00:15]} O-O {[%emt 0:00:20]} 6. O-O {[%emt 0:00:05]} b6 {[%emt 0:01:43]} 7. d4 {[%emt 0:00:41]} dxc4 {[%emt 0:01:00]} 8. Bxc4 {[%emt 0:00:11]} Bb7 {[%emt 0:00:25]} 9. Re1 {[%emt 0:00:17]} c5 {[%emt 0:08:14]} 10. b3 {[%emt 0:01:15]} Nc6 {[%emt 0:06:21]} 11. Ba3 {[%emt 0:01:44]} cxd4 {[%emt 0:02:50]} 12. Bxe7 {[%emt 0:00:15]} Nxe7 {[%emt 0:03:19]} 13. Nxd4 {[%emt 0:00:57]} Ned5 {[%emt 0:00:49]} 14. Nxd5 {[%emt 0:01:12]} Nxd5 {[%emt 0:00:47]} 15. e4 {[%emt 0:02:25]} Nf6 {[%emt 0:09:59]} 16. f3 {[%emt 0:01:18]} Qe7 {[%emt 0:03:42]} 17. Qe2 {[%emt 0:01:29]} Rfd8 {[%emt 0:01:31]} 18. Nc2 {[%emt 0:00:26]} Rac8 {[%emt 0:08:50]} 19. Red1 {[%emt 0:01:00]} Qc5+ {[%emt 0:03:14]} 20. Kh1 {[%emt 0:00:59]} h6 {[%emt 0:03:48]} 21. Rxd8+ {[%emt 0:00:20]} Rxd8 {[%emt 0:00:12]} 22. Rd1 {[%emt 0:00:09]} Qc7 {[%emt 0:08:47]} 23. Rxd8+ {[%emt 0:01:22]} Qxd8 {[%emt 0:01:35]} 24. Qd3 {[%emt 0:01:57]} Qc7 {[%emt 0:06:28]} 25. Ne3 {[%emt 0:01:27]} Nd7 {[%emt 0:02:12]} 26. h3 {[%emt 0:00:46]} a6 {[%emt 0:05:02]} 27. Qc2 {[%emt 0:01:41]} Qc5 {[%emt 0:03:53]} 28. Qe2 {[%emt 0:01:59]} b5 {[%emt 0:02:08]} 29. Bd3 {[%emt 0:00:12]} Ne5 {[%emt 0:00:16]} 30. Kh2 {[%emt 0:00:35]} Qc3 {[%emt 0:02:09]} 31. Bb1 {[%emt 0:01:00]} Nc6 {[%emt 0:00:44]} 32. Qd3 {[%emt 0:00:52]} Qxd3 {[%emt 0:00:31]} 33. Bxd3 {[%emt 0:00:07]} Nd4 {[%emt 0:00:13]} 34. Kg1 {[%emt 0:00:44]} e5 {[%emt 0:00:08]} 35. Nf5 {[%emt 0:00:28]} Nxf5 {[%emt 0:00:20]} 36. exf5 {[%emt 0:00:06]} Kf8 {[%emt 0:00:31]} 37. Be4 {[%emt 0:00:17]} Bxe4 {[%emt 0:00:36]} 38. fxe4 {[%emt 0:00:07]} Ke7 {[%emt 0:00:03]} 39. Kf2 {[%emt 0:00:19]} Kd6 {[%emt 0:00:10]} 40. b4 {[%emt 0:00:25]} Kc6 {[%emt 0:02:04]} 41. Ke3 {[%emt 0:00:15]} a5 {[%emt 0:00:58]} 42. bxa5 {[%emt 0:00:29]} Kb7 {[%emt 0:01:55]} 43. Kd3 {[%emt 0:00:12]} Ka6 {[%emt 0:00:08]} 44. Kc3 {[%emt 0:00:13]} Kxa5 {[%emt 0:00:05]} 45. Kb3 {[%emt 0:00:17]} Kb6 {[%emt 0:03:13]} 46. Kb4 {[%emt 0:00:10]} Kc6 {[%emt 0:00:05]} 47. a3 {[%emt 0:00:59]} Kb6 {[%emt 0:00:12]} 48. g4 {[%emt 0:00:44]} f6 {[%emt 0:00:29]} 49. h4 {[%emt 0:00:15]} Kc6 {[%emt 0:00:06]} 50. h5 {[%emt 0:00:31]} Kb6 {[%emt 0:00:06]} 51. Kb3 {[%emt 0:00:44]} Ka5 {[%emt 0:00:40]} 52. Kc3 {[%emt 0:00:35]} Ka4 {[%emt 0:00:06]} 53. Kb2 {[%emt 0:00:09]} b4 {[%emt 0:00:08]} 54. axb4 {[%emt 0:00:13]} Kxb4 {[%emt 0:00:07]} 55. Kc2 {[%emt 0:00:09]} Kc4 {[%emt 0:00:03]} 56. Kd2 {[%emt 0:00:13]} Kd4 {[%emt 0:00:04]} 57. Ke2 {[%emt 0:00:12]} Kxe4 {[%emt 0:00:06]} 58. Kf2 {[%emt 0:00:09]} Kf4 {[%emt 0:00:04]} 59. g5 {[%emt 0:00:11]} Kxf5 {[%emt 0:00:18]} 60. gxf6 {[%emt 0:00:30]} gxf6 {[%emt 0:00:07]} 61. Kf3 {[%emt 0:00:10]} Kg5 {[%emt 0:00:04]} 62. Ke4 {[%emt 0:00:07]} Kxh5 {[%emt 0:00:08]} 63. Kf5 {[%emt 0:00:09]} e4 {[%emt 0:00:14]} 64. Kxe4 {[%emt 0:00:06]} Kg4 {[%emt 0:00:05]} 65. Ke3 {[%emt 0:00:08]} h5 {[%emt 0:00:09]} 66. Kf2 {[%emt 0:00:07]} f5 {[%emt 0:00:09]} 67. Kg2 {[%emt 0:00:06]} f4 {[%emt 0:00:04]} 68. Kg1 {[%emt 0:00:06]} f3 {[%emt 0:00:05]} 69. Kf2 {[%emt 0:00:06]} h4 {[%emt 0:00:15]} 70. Kg1 {[%emt 0:00:06]} Kg3 {[%emt 0:00:05]} 71. Kf1 {[%emt 0:00:16]} f2 {[%emt 0:00:03]} 72. Ke2 {[%emt 0:00:10]} Kg2 {[%emt 0:00:05]} 73. Ke3 {[%emt 0:00:09]} f1=Q {[%emt 0:00:12]} 74. Kd4 {[%emt 0:00:09]} Qe2 {[%emt 0:00:13]} 75. Kc3 {[%emt 0:00:12]} Qe4 {[%emt 0:00:09]} 76. Kd2 {[%emt 0:00:07]} Kf2 {[%emt 0:00:07]} 77. Kc3 {[%emt 0:00:10]} Qd5 {[%emt 0:00:05]} 78. Kb4 {[%emt 0:00:12]} Qc6 {[%emt 0:00:09]} 79. Kb3 {[%emt 0:00:12]} Qc5 {[%emt 0:00:05]} 80. Kb2 {[%emt 0:00:06]} Qc4 {[%emt 0:00:04]} 81. Kb1 {[%emt 0:00:06]} Ke2 {[%emt 0:00:08]} 82. Kb2 {[%emt 0:00:06]} Kd2 {[%emt 0:00:05]} 83. Kb1 {[%emt 0:00:06]} Kc3 {[%emt 0:00:21]} 84. Kc1 {[%emt 0:00:08]} Qe2 {[%emt 0:00:06]} 85. Kb1 {[%emt 0:00:11]} Qb2# {[%emt 0:00:01]} 0-1